fUSD/lending_fUSD_20250106
["ID","MTS","AMOUNT","RATE_DAILY","PERIOD"]
[347876653,1736177432572,-666.11,9.999e-05,2]
[347876654,1736177432582,-500.0,9.999e-05,2]
[347876655,1736177432591,-500.0,9.999e-05,2]
[347876656,1736177432602,-500.0,9.999e-05,2]
[347876657,1736177432612,-500.0,9.999e-05,2]
[347876658,1736177432622,-500.0,9.999e-05,2]
[347876659,1736177432631,-500.0,9.999e-05,2]
[347876660,1736177432640,-500.0,9.999e-05,2]
[347876661,1736177432650,-500.0,9.999e-05,2]
[347876662,1736177432660,-500.0,9.999e-05,2]
[347876663,1736177432669,-526.06,9.999e-05,2]
[347876664,1736177432678,-500.0,9.999e-05,2]
[347876665,1736177432688,-500.0,9.999e-05,2]
[347876666,1736177432698,-500.0,9.999e-05,2]
[347876667,1736177432708,-500.0,9.999e-05,2]
[347876668,1736177432718,-500.0,9.999e-05,2]
[347876670,1736177432728,-500.0,9.999e-05,2]
[347876671,1736177432738,-500.0,9.999e-05,2]
[347876672,1736177432747,-500.0,9.999e-05,2]
[347876673,1736177432757,-500.0,9.999e-05,2]
[347876674,1736177432766,-500.0,9.999e-05,2]
[347876675,1736177432776,-1391.08,9.999e-05,2]
[347876676,1736177432786,-500.0,9.999e-05,2]
[347876677,1736177432796,-503.58333237,9.999e-05,2]
[347876678,1736177432806,-500.0,9.999e-05,2]
[347876679,1736177432816,-395.88319079,9.999e-05,2]
[347876680,1736177432826,-215.59201754,9.999e-05,2]
[347876681,1736177432836,-924232.39783559,0.0001,2]
[347876682,1736177432849,-22581.18236838,0.0001,2]
[347876683,1736177432860,-249082.00446349,0.0001,2]
[347876684,1736177432872,-38281.29399318,0.0001,2]
[347876685,1736177432885,-1969.62824091,0.0001,2]
[347876686,1736177432896,-6139.8019936,0.0001,2]
[347876687,1736177432918,-2156.27514021,0.0001,2]
[347876688,1736177432930,-7033.95,0.0001,2]
[347876689,1736177432947,-1016140.41384531,0.0001,2]
[347876693,1736177437859,-503.11114143,9.999e-05,2]
[347876694,1736177437870,-500.0,9.999e-05,2]
[347876695,1736177437880,-502.87625818,9.999e-05,2]
[347876696,1736177437891,-500.0,9.999e-05,2]
[347876697,1736177437900,-134934.92122458,0.0001,2]
[347876698,1736177437912,-10265.0082,0.0001,2]
[347876699,1736177437961,-500.0,9.999e-05,2]
[347876700,1736177437971,-14277.48947022,0.0001,2]
[347876701,1736177437982,-547.93414949,0.0001,2]
[347876702,1736177438039,-413.4070246,0.0001,2]
[347876703,1736177438051,-404.58,0.0001,2]
[347876704,1736177438062,-486.4185678,0.0001,2]
[347876705,1736177438074,-1016.0573629,0.0001,2]
[347876706,1736177438130,-119014.52018263,0.0001,2]
[347876707,1736177438142,-2939.02903934,0.0001,2]
[347876708,1736177438186,-39200.0,0.0001,2]
[347876709,1736177438198,-7382058.77252796,0.0001,2]
[347876710,1736177438239,-1635.93077744,0.0001,2]
[347876718,1736177439949,-500.0,9.999e-05,2]
[347876719,1736177439959,-500.0,9.999e-05,2]
[347876720,1736177439969,-573.67951457,9.999e-05,2]
[347876721,1736177439978,-15481.43228277,0.0001,2]
[347876722,1736177440324,-4890.0,0.0001,2]
[347876723,1736177440495,-500.0,9.999e-05,2]
[347876724,1736177440504,-11495.03563808,0.0001,2]
[347876725,1736177440518,-8156.45886777,0.0001,2]
[347876726,1736177440531,-28601.37365044,0.0001,2]
[347876727,1736177440543,-890.32603996,0.0001,2]
[347876728,1736177440587,-1249.76973791,0.0001,2]
[347876729,1736177440744,-3415.9561021,0.0001,2]
[347876763,1736177443006,-500.0,9.999e-05,2]
[347876764,1736177443015,-500.0,9.999e-05,2]
[347876765,1736177443025,-500.0,9.999e-05,2]
[347876766,1736177443034,-10694.316,0.0001,2]
[347876767,1736177443046,-390.33001957,0.0001,2]
[347876768,1736177443150,-849.413,0.0001,2]
[347876769,1736177443161,-4943.7832645,0.0001,2]
[347876770,1736177443174,-304.23,0.0001,2]
[347876771,1736177443306,-308902.33896252,0.0001,2]
[347876772,1736177443318,-8790.09452355,0.0001,2]
[347876856,1736177446051,-15926.91226793,9.9e-05,2]
[347876857,1736177446063,-928.97224686,9.9e-05,2]
[347876858,1736177446075,-860.54694062,9.9e-05,2]
[347876859,1736177446105,-10508.56434459,9.9e-05,2]
[347876860,1736177446115,-500.0,9.999e-05,2]
[347876861,1736177446125,-500.0,9.999e-05,2]
[347876862,1736177446135,-500.0,9.999e-05,2]
[347876863,1736177446145,-500.0,9.999e-05,2]
[347876864,1736177446155,-500.0,9.999e-05,2]
[347876865,1736177446164,-97920.71743871,0.0001,2]
[347876866,1736177446260,-12330.2581585,0.0001,2]
[347876867,1736177446273,-12202.68916995,0.0001,2]
[347876868,1736177446286,-30102.21203,0.0001,2]
[347876869,1736177446299,-8874.52722084,0.0001,2]
[347876870,1736177446311,-2820.87431498,0.0001,2]
[347876871,1736177446324,-3017.3976,0.0001,2]
[347876872,1736177446335,-477.5917809,0.0001,2]
[347876873,1736177492504,657.7079,9.9e-05,2]
[347876874,1736177547255,1758.2921,9.9e-05,2]
[347876875,1736177553171,-725.6262,9.9e-05,2]
[347876876,1736177553195,-2416.0,9.973e-05,2]
[347876877,1736177553444,-300.0,9.998e-05,2]
[347876878,1736177553470,-500.0,9.999e-05,2]
[347876879,1736177553495,-501.86429983,9.999e-05,2]
[347876880,1736177553520,-500.0,9.999e-05,2]
[347876881,1736177553562,-500.0,9.999e-05,2]
[347876882,1736177553587,-502.15367798,9.999e-05,2]
[347876883,1736177553613,-502.4210979,9.999e-05,2]
[347876884,1736177553638,-500.0,9.999e-05,2]
[347876885,1736177553663,-501.62998678,9.999e-05,2]
[347876886,1736177553688,-500.0,9.999e-05,2]
[347876887,1736177553713,-500.0,9.999e-05,2]
[347876888,1736177553738,-500.0,9.999e-05,2]
[347876889,1736177553762,-500.0,9.999e-05,2]
[347876890,1736177553802,-500.77929914,9.999e-05,2]
[347876891,1736177553827,-500.0,9.999e-05,2]
[347876892,1736177553853,-502.33613823,9.999e-05,2]
[347876893,1736177553878,-501.25039723,9.999e-05,2]
[347876894,1736177553906,-502.42580961,9.999e-05,2]
[347876895,1736177553930,-500.66765636,9.999e-05,2]
[347876896,1736177553955,-500.0,9.999e-05,2]
[347876897,1736177553979,-500.0,9.999e-05,2]
[347876898,1736177554005,-500.0,9.999e-05,2]
[347876899,1736177554031,-503.06829921,9.999e-05,2]
[347876900,1736177554072,-500.0,9.999e-05,2]
[347876901,1736177554097,-541.75956517,9.999e-05,2]
[347876902,1736177554122,-500.0,9.999e-05,2]
[347876903,1736177554147,-500.0,9.999e-05,2]
[347876904,1736177554173,-500.51267976,9.999e-05,2]
[347876905,1736177554199,-501.958119,9.999e-05,2]
[347876906,1736177554226,-500.58353621,9.999e-05,2]
[347876907,1736177554252,-500.0,9.999e-05,2]
[347876908,1736177554277,-500.0,9.999e-05,2]
[347876909,1736177554301,-505.52275168,9.999e-05,2]
[347876910,1736177554325,-500.0,9.999e-05,2]
[347876911,1736177554349,-500.0,9.999e-05,2]
[347876912,1736177554375,-613.96,9.999e-05,2]
[347876913,1736177554400,-501.48116332,9.999e-05,2]
[347876914,1736177554427,-500.61076028,9.999e-05,2]
[347876915,1736177554451,-501.93691105,9.999e-05,2]
[347876916,1736177554475,-500.8221086,9.999e-05,2]
[347876917,1736177554502,-501.209758,9.999e-05,2]
[347876918,1736177554526,-500.0,9.999e-05,2]
[347876919,1736177554559,-464.28199667,9.999e-05,2]
[347876920,1736177554587,-500.74943946,9.999e-05,2]
[347876921,1736177554612,-622.91,9.999e-05,2]
[347876922,1736177554638,-500.0,9.999e-05,2]
[347876923,1736177554663,-596.36782734,9.999e-05,2]
[347876924,1736177554688,-501.33755927,9.999e-05,2]
[347876925,1736177554712,-517.71182935,9.999e-05,2]
[347876926,1736177554736,-500.2589236,9.999e-05,2]
[347876927,1736177554761,-500.0,9.999e-05,2]
[347876928,1736177554786,-500.0,9.999e-05,2]
[347876929,1736177554811,-500.75181375,9.999e-05,2]
[347876930,1736177554835,-631.19984861,9.999e-05,2]
[347876931,1736177554860,-500.0,9.999e-05,2]
[347876932,1736177554885,-500.0,9.999e-05,2]
[347876933,1736177554910,-497.21565165,9.999e-05,2]
[347876934,1736177554935,-500.0,9.999e-05,2]
[347876935,1736177554959,-500.0,9.999e-05,2]
[347876936,1736177554983,-500.0,9.999e-05,2]
[347876937,1736177555007,-502.14889278,9.999e-05,2]
[347876938,1736177555031,-501.38540802,9.999e-05,2]
[347876939,1736177555066,-500.0,9.999e-05,2]
[347876940,1736177555090,-500.0,9.999e-05,2]
[347876941,1736177555115,-500.0,9.999e-05,2]
[347876942,1736177555138,-502.59534447,9.999e-05,2]
[347876943,1736177555164,-1202.19,9.999e-05,2]
[347876944,1736177555188,-507.6434536,9.999e-05,2]
[347876945,1736177555213,-500.0,9.999e-05,2]
[347876946,1736177555237,-500.0,9.999e-05,2]
[347876947,1736177555261,-500.0,9.999e-05,2]
[347876948,1736177555284,-500.0,9.999e-05,2]
[347876949,1736177555322,-503.22697016,9.999e-05,2]
[347876950,1736177555345,-501.17817601,9.999e-05,2]
[347876951,1736177555368,-500.0,9.999e-05,2]
[347876952,1736177555393,-503.73824153,9.999e-05,2]
[347876953,1736177555420,-500.0,9.999e-05,2]
[347876954,1736177555444,-504.4340185,9.999e-05,2]
[347876955,1736177555469,-501.15644652,9.999e-05,2]
[347876956,1736177555495,-500.0,9.999e-05,2]
[347876957,1736177555519,-500.35505843,9.999e-05,2]
[347876958,1736177555550,-500.0,9.999e-05,2]
[347876959,1736177555579,-501.30902653,9.999e-05,2]
[347876960,1736177555603,-500.0,9.999e-05,2]
[347876961,1736177555626,-501.27072736,9.999e-05,2]
[347876962,1736177555648,-501.93847069,9.999e-05,2]
[347876963,1736177555672,-500.0,9.999e-05,2]
[347876964,1736177555695,-500.83852586,9.999e-05,2]
[347876965,1736177555717,-500.0,9.999e-05,2]
[347876966,1736177555741,-500.0,9.999e-05,2]
[347876967,1736177555765,-500.0,9.999e-05,2]
[347876968,1736177555789,-501.45305014,9.999e-05,2]
[347876969,1736177555813,-500.0,9.999e-05,2]
[347876970,1736177555835,-500.0,9.999e-05,2]
[347876971,1736177555856,-500.0,9.999e-05,2]
[347876972,1736177555879,-501.13836844,9.999e-05,2]
[347876973,1736177555902,-500.0,9.999e-05,2]
[347876974,1736177555934,-511.05766318,9.999e-05,2]
[347876975,1736177555962,-500.0,9.999e-05,2]
[347876976,1736177555988,-501.73458316,9.999e-05,2]
[347876977,1736177556017,-502.03994101,9.999e-05,2]
[347876978,1736177556051,-307.63783375,9.999e-05,2]
[347876979,1736177556083,-501.28082257,9.999e-05,2]
[347876980,1736177556112,-497.90320978,9.999e-05,2]
[347876981,1736177556141,-507.34913785,9.999e-05,2]
[347876982,1736177556166,-502.98128703,9.999e-05,2]
[347876983,1736177556195,-579.52258512,9.999e-05,2]
[347876984,1736177556224,-502.18396197,9.999e-05,2]
[347876985,1736177556252,-500.0,9.999e-05,2]
[347876986,1736177556281,-500.0,9.999e-05,2]
[347876987,1736177556320,-501.27887555,9.999e-05,2]
[347876988,1736177556346,-504.80682926,9.999e-05,2]
[347876989,1736177556375,-500.0,9.999e-05,2]
[347876990,1736177556402,-500.59076156,9.999e-05,2]
[347876991,1736177556434,-500.0,9.999e-05,2]
[347876992,1736177556462,-495.76199539,9.999e-05,2]
[347876993,1736177556492,-500.0,9.999e-05,2]
[347876994,1736177556521,-500.78673797,9.999e-05,2]
[347876995,1736177556553,-500.86172353,9.999e-05,2]
[347876996,1736177556582,-581.14434668,9.999e-05,2]
[347876997,1736177556610,-501.70745995,9.999e-05,2]
[347876998,1736177556639,-501.13456346,9.999e-05,2]
[347876999,1736177556668,-500.0,9.999e-05,2]
[347877000,1736177556694,-500.0,9.999e-05,2]
[347877001,1736177556720,-642.0362101,9.999e-05,2]
[347877002,1736177556747,-500.0,9.999e-05,2]
[347877003,1736177556775,-501.74977843,9.999e-05,2]
[347877004,1736177556809,-500.0,9.999e-05,2]
[347877005,1736177556834,-505.00865834,9.999e-05,2]
[347877006,1736177556861,-500.0,9.999e-05,2]
[347877007,1736177556887,-530.79655846,9.999e-05,2]
[347877008,1736177556912,-583.83307377,9.999e-05,2]
[347877009,1736177556943,-515.8,9.999e-05,2]
[347877010,1736177556970,-500.0,9.999e-05,2]
[347877011,1736177556997,-500.0,9.999e-05,2]
[347877012,1736177557023,-500.0,9.999e-05,2]
[347877013,1736177557056,-500.0,9.999e-05,2]
[347877014,1736177557085,-500.0,9.999e-05,2]
[347877015,1736177557115,-500.0,9.999e-05,2]
[347877016,1736177557143,-502.89751708,9.999e-05,2]
[347877017,1736177557169,-500.0,9.999e-05,2]
[347877018,1736177557197,-500.0,9.999e-05,2]
[347877019,1736177557224,-510.07013657,9.999e-05,2]
[347877020,1736177557254,-4924004.6784644,0.0001,2]
[347877021,1736177599747,540.31,8.292e-05,2]
[347877028,1736178312844,181.53,7.247e-05,2]
[347877074,1736178632172,-300.0,8.971e-05,2]
[347877078,1736178632183,-1.6,8.972e-05,2]
[347877081,1736178632195,-1525.15327041,8.972e-05,2]
[347877101,1736178632294,-9476.04672959,8.972e-05,2]
[347877105,1736178632303,-4939.38,8.98e-05,2]
[347877108,1736178632313,-181.53,9.059e-05,2]
[347877110,1736178632323,-200.0,9.066e-05,2]
[347877112,1736178632334,-164.11,9.076e-05,2]
[347877114,1736178632343,-250.0,9.182e-05,2]
[347877116,1736178632353,-250.0,9.187e-05,2]
[347877118,1736178632363,-186.33,9.235e-05,2]
[347877120,1736178632373,-839.4,9.311e-05,2]
[347877122,1736178632383,-9209.54525769,9.702e-05,2]
[347877124,1736178632395,-2944.83,9.702e-05,2]
[347877126,1736178632407,-1837.63861403,9.702e-05,2]
[347877223,1736178633976,-11360.98612828,9.702e-05,2]
[347877225,1736178633986,-200.0,9.751e-05,2]
[347877227,1736178633996,-286.47839337,9.751e-05,2]
[347877229,1736178634007,-150.0,9.781e-05,2]
[347877230,1736178634016,-17952.21902003,9.799e-05,2]
[347877231,1736178634032,-1000.7,9.799e-05,2]
[347877232,1736178634061,-15993.18587997,9.799e-05,2]
[347877233,1736178634070,-150.0,9.799e-05,2]
[347877234,1736178634081,-1000.0,9.8e-05,2]
[347877235,1736178634091,-2414.8469,9.8e-05,2]
[347877236,1736178634102,-5156.2646,9.8e-05,2]
[347877237,1736178634112,-1000.0,9.8e-05,2]
[347877238,1736178634123,-2579.1322,9.8e-05,2]
[347877239,1736178634133,-2284.7925,9.8e-05,2]
[347877240,1736178634143,-2500.0,9.8e-05,2]
[347877241,1736178634153,-420.0,9.868e-05,2]
[347877242,1736178634163,-585.76,9.894e-05,2]
[347877243,1736178634174,-3433.386,9.899e-05,2]
[347877244,1736178634184,-226.326,9.899e-05,2]
[347877245,1736178634195,-500.0,9.899e-05,2]
[347877246,1736178634205,-500.0,9.899e-05,2]
[347877247,1736178634215,-500.0,9.899e-05,2]
[347877248,1736178634225,-500.0,9.899e-05,2]
[347877249,1736178634237,-500.0,9.899e-05,2]
[347877250,1736178634247,-500.0,9.899e-05,2]
[347877251,1736178634258,-500.0,9.899e-05,2]
[347877252,1736178634269,-500.0,9.899e-05,2]
[347877253,1736178634282,-500.0,9.899e-05,2]
[347877254,1736178634292,-500.0,9.899e-05,2]
[347877255,1736178634303,-629.82,9.899e-05,2]
[347877256,1736178634313,-500.0,9.899e-05,2]
[347877257,1736178634324,-500.0,9.899e-05,2]
[347877258,1736178634334,-397.19,9.899e-05,2]
[347877259,1736178634343,-500.0,9.899e-05,2]
[347877260,1736178634353,-500.0,9.899e-05,2]
[347877261,1736178634362,-500.59373067,9.899e-05,2]
[347877262,1736178634372,-500.0,9.899e-05,2]
[347877263,1736178634383,-500.81623732,9.899e-05,2]
[347877264,1736178634393,-500.0,9.899e-05,2]
[347877265,1736178634403,-500.0,9.899e-05,2]
[347877266,1736178634413,-504.8230569,9.899e-05,2]
[347877267,1736178634422,-500.0,9.899e-05,2]
[347877268,1736178634432,-500.0,9.899e-05,2]
[347877269,1736178634443,-500.0,9.899e-05,2]
[347877270,1736178634453,-596.95,9.899e-05,2]
[347877271,1736178634463,-500.0,9.899e-05,2]
[347877272,1736178634472,-500.0,9.899e-05,2]
[347877273,1736178634482,-500.0,9.899e-05,2]
[347877274,1736178634492,-500.0,9.899e-05,2]
[347877275,1736178634501,-500.0,9.899e-05,2]
[347877276,1736178634511,-500.0,9.899e-05,2]
[347877277,1736178634522,-500.0,9.899e-05,2]
[347877278,1736178634533,-500.0,9.899e-05,2]
[347877279,1736178634542,-500.0,9.899e-05,2]
[347877280,1736178634552,-500.0,9.899e-05,2]
[347877281,1736178634561,-500.0,9.899e-05,2]
[347877282,1736178634571,-500.0,9.899e-05,2]
[347877283,1736178634581,-500.0,9.899e-05,2]
[347877284,1736178634591,-500.0,9.899e-05,2]
[347877285,1736178634601,-500.0,9.899e-05,2]
[347877286,1736178634612,-500.77997156,9.899e-05,2]
[347877287,1736178634622,-500.0,9.899e-05,2]
[347877288,1736178634638,-500.0,9.899e-05,2]
[347877289,1736178634648,-500.0,9.899e-05,2]
[347877290,1736178634658,-500.0,9.899e-05,2]
[347877291,1736178634668,-500.0,9.899e-05,2]
[347877292,1736178634678,-500.0,9.899e-05,2]
[347877293,1736178634688,-500.0,9.899e-05,2]
[347877294,1736178634697,-500.0,9.899e-05,2]
[347877295,1736178634707,-500.0,9.899e-05,2]
[347877296,1736178634717,-500.0,9.899e-05,2]
[347877297,1736178634726,-300.90270858,9.899e-05,2]
[347877298,1736178634736,-500.0,9.899e-05,2]
[347877299,1736178634745,-500.0,9.899e-05,2]
[347877300,1736178634759,-500.0,9.899e-05,2]
[347877301,1736178634769,-500.79998703,9.899e-05,2]
[347877302,1736178634781,-500.0,9.899e-05,2]
[347877303,1736178634791,-500.63345698,9.899e-05,2]
[347877304,1736178634803,-500.87946102,9.899e-05,2]
[347877305,1736178634813,-500.0,9.899e-05,2]
[347877306,1736178634822,-502.4,9.899e-05,2]
[347877307,1736178634833,-500.25034454,9.899e-05,2]
[347877308,1736178634842,-500.0,9.899e-05,2]
[347877309,1736178634852,-500.0,9.899e-05,2]
[347877310,1736178634862,-500.0,9.899e-05,2]
[347877311,1736178634872,-500.0,9.899e-05,2]
[347877312,1736178634881,-502.27052209,9.899e-05,2]
[347877313,1736178634891,-500.0,9.899e-05,2]
[347877314,1736178634901,-500.96976411,9.899e-05,2]
[347877315,1736178634911,-157.85127417,9.899e-05,2]
[347877316,1736178634921,-500.0,9.899e-05,2]
[347877317,1736178634930,-500.73195537,9.899e-05,2]
[347877318,1736178634940,-556.19178722,9.899e-05,2]
[347877319,1736178634950,-500.0,9.899e-05,2]
[347877320,1736178634960,-500.31136701,9.899e-05,2]
[347877321,1736178634969,-500.0,9.899e-05,2]
[347877322,1736178634979,-500.4963551,9.899e-05,2]
[347877323,1736178634988,-500.0,9.899e-05,2]
[347877324,1736178634998,-500.37377024,9.899e-05,2]
[347877325,1736178635008,-503.57027241,9.899e-05,2]
[347877326,1736178635019,-500.63742357,9.899e-05,2]
[347877327,1736178635030,-500.0,9.899e-05,2]
[347877328,1736178635039,-500.85628751,9.899e-05,2]
[347877329,1736178635049,-500.0,9.899e-05,2]
[347877330,1736178635060,-500.0,9.899e-05,2]
[347877331,1736178635070,-395.20621757,9.899e-05,2]
[347877332,1736178635086,-104.79378243,9.899e-05,2]
[347877333,1736178635096,-500.0,9.899e-05,2]
[347877334,1736178635105,-500.84308073,9.899e-05,2]
[347877335,1736178635115,-500.70196505,9.899e-05,2]
[347877336,1736178635125,-500.0,9.899e-05,2]
[347877337,1736178635135,-500.0,9.899e-05,2]
[347877338,1736178635144,-500.37152738,9.899e-05,2]
[347877339,1736178635154,-500.0,9.899e-05,2]
[347877340,1736178635164,-500.0,9.899e-05,2]
[347877341,1736178635175,-500.0,9.899e-05,2]
[347877342,1736178635185,-500.0,9.899e-05,2]
[347877343,1736178635195,-499.99779869,9.899e-05,2]
[347877344,1736178635204,-500.7308483,9.899e-05,2]
[347877345,1736178635214,-500.0,9.899e-05,2]
[347877346,1736178635224,-500.0,9.899e-05,2]
[347877347,1736178635235,-500.61787739,9.899e-05,2]
[347877348,1736178635246,-500.81693741,9.899e-05,2]
[347877349,1736178635258,-500.0,9.899e-05,2]
[347877350,1736178635268,-500.83393922,9.899e-05,2]
[347877351,1736178635280,-500.0,9.899e-05,2]
[347877352,1736178635289,-500.0,9.899e-05,2]
[347877353,1736178635299,-501.07076863,9.899e-05,2]
[347877354,1736178635309,-500.0,9.899e-05,2]
[347877355,1736178635319,-349.60721936,9.899e-05,2]
[347877356,1736178635329,-500.0,9.899e-05,2]
[347877357,1736178635339,-500.0,9.899e-05,2]
[347877358,1736178635349,-500.0,9.899e-05,2]
[347877359,1736178635358,-500.0,9.899e-05,2]
[347877360,1736178635368,-500.67721626,9.899e-05,2]
[347877361,1736178635378,-500.0,9.899e-05,2]
[347877362,1736178635387,-500.29787587,9.899e-05,2]
[347877363,1736178635397,-501.03109747,9.899e-05,2]
[347877364,1736178635407,-500.0,9.899e-05,2]
[347877365,1736178635417,-500.49234578,9.899e-05,2]
[347877366,1736178635426,-500.0,9.899e-05,2]
[347877367,1736178635436,-500.0,9.899e-05,2]
[347877368,1736178635445,-7628.05,9.899e-05,2]
[347877369,1736178635455,-501.08004424,9.899e-05,2]
[347877370,1736178635465,-501.35445546,9.899e-05,2]
[347877371,1736178635475,-603.27459231,9.899e-05,2]
[347877372,1736178635484,-500.0,9.899e-05,2]
[347877373,1736178635495,-501.1752285,9.899e-05,2]
[347877374,1736178635504,-500.0,9.899e-05,2]
[347877375,1736178635514,-500.0,9.899e-05,2]
[347877376,1736178635523,-500.0,9.899e-05,2]
[347877377,1736178635533,-500.0,9.899e-05,2]
[347877378,1736178635543,-500.0,9.899e-05,2]
[347877379,1736178635552,-500.0,9.899e-05,2]
[347877380,1736178635561,-500.0,9.899e-05,2]
[347877381,1736178635571,-502.22281947,9.899e-05,2]
[347877382,1736178635580,-610.1089224,9.899e-05,2]
[347877383,1736178635589,-500.47567859,9.899e-05,2]
[347877384,1736178635599,-500.0,9.899e-05,2]
[347877385,1736178635608,-500.0,9.899e-05,2]
[347877386,1736178635618,-500.51745302,9.899e-05,2]
[347877387,1736178635629,-499.2803885,9.899e-05,2]
[347877388,1736178635638,-500.20044793,9.899e-05,2]
[347877389,1736178635648,-500.0,9.899e-05,2]
[347877390,1736178635657,-500.73898549,9.899e-05,2]
[347877391,1736178635667,-500.0,9.899e-05,2]
[347877392,1736178635677,-500.0,9.899e-05,2]
[347877393,1736178635686,-500.39228216,9.899e-05,2]
[347877394,1736178635696,-500.71960789,9.899e-05,2]
[347877395,1736178635705,-445.90216119,9.899e-05,2]
[347877396,1736178635719,-54.09783881,9.899e-05,2]
[347877397,1736178635728,-501.55440883,9.899e-05,2]
[347877398,1736178635737,-500.26783216,9.899e-05,2]
[347877399,1736178635747,-500.62176611,9.899e-05,2]
[347877400,1736178635761,-500.5940752,9.899e-05,2]
[347877401,1736178635770,-500.83474581,9.899e-05,2]
[347877402,1736178635781,-500.8980088,9.899e-05,2]
[347877403,1736178635791,-500.0,9.899e-05,2]
[347877404,1736178635801,-500.0,9.899e-05,2]
[347877405,1736178635810,-500.21325606,9.899e-05,2]
[347877406,1736178635820,-507.12596884,9.899e-05,2]
[347877407,1736178635830,-500.0,9.899e-05,2]
[347877408,1736178635840,-500.0,9.899e-05,2]
[347877409,1736178635849,-500.0,9.899e-05,2]
[347877410,1736178635859,-500.44683849,9.899e-05,2]
[347877411,1736178635868,-500.0,9.899e-05,2]
[347877412,1736178635878,-500.20933967,9.899e-05,2]
[347877413,1736178635887,-500.0,9.899e-05,2]
[347877414,1736178635896,-500.0,9.899e-05,2]
[347877415,1736178635905,-500.0,9.899e-05,2]
[347877416,1736178635915,-500.0,9.899e-05,2]
[347877417,1736178635924,-501.2031698,9.899e-05,2]
[347877418,1736178635933,-534.26311102,9.899e-05,2]
[347877419,1736178635943,-500.55794347,9.899e-05,2]
[347877420,1736178635952,-500.0,9.899e-05,2]
[347877421,1736178635961,-500.0,9.899e-05,2]
[347877422,1736178635971,-500.0,9.899e-05,2]
[347877423,1736178635980,-500.0,9.899e-05,2]
[347877424,1736178635989,-500.0,9.899e-05,2]
[347877425,1736178635999,-500.0,9.899e-05,2]
[347877426,1736178636009,-500.0,9.899e-05,2]
[347877427,1736178636019,-500.0,9.899e-05,2]
[347877428,1736178636030,-500.0,9.899e-05,2]
[347877429,1736178636039,-204.90952584,9.899e-05,2]
[347877430,1736178636048,-500.0,9.899e-05,2]
[347877431,1736178636058,-500.0,9.899e-05,2]
[347877432,1736178636067,-500.0,9.899e-05,2]
[347877433,1736178636076,-547.52345749,9.899e-05,2]
[347877434,1736178636086,-500.0,9.899e-05,2]
[347877435,1736178636095,-500.0,9.899e-05,2]
[347877436,1736178636105,-500.0,9.899e-05,2]
[347877437,1736178636114,-500.0,9.899e-05,2]
[347877438,1736178636127,-500.0,9.899e-05,2]
[347877439,1736178636137,-500.0,9.899e-05,2]
[347877440,1736178636146,-500.0,9.899e-05,2]
[347877441,1736178636156,-500.0,9.899e-05,2]
[347877442,1736178636165,-500.0,9.899e-05,2]
[347877443,1736178636175,-500.0,9.899e-05,2]
[347877444,1736178636184,-507.08086863,9.899e-05,2]
[347877445,1736178636194,-500.0,9.899e-05,2]
[347877446,1736178636204,-507.86,9.899e-05,2]
[347877447,1736178636213,-500.0,9.899e-05,2]
[347877448,1736178636222,-456.12223951,9.899e-05,2]
[347877449,1736178636232,-500.0,9.899e-05,2]
[347877450,1736178636241,-500.0,9.899e-05,2]
[347877451,1736178636250,-500.0,9.899e-05,2]
[347877452,1736178636260,-500.0,9.899e-05,2]
[347877453,1736178636269,-500.0,9.899e-05,2]
[347877454,1736178636282,-500.0,9.899e-05,2]
[347877455,1736178636291,-500.0,9.899e-05,2]
[347877456,1736178636301,-500.0,9.899e-05,2]
[347877457,1736178636311,-500.0,9.899e-05,2]
[347877458,1736178636320,-500.0,9.899e-05,2]
[347877459,1736178636330,-500.0,9.899e-05,2]
[347877460,1736178636339,-500.0,9.899e-05,2]
[347877461,1736178636348,-500.0,9.899e-05,2]
[347877462,1736178636358,-500.0,9.899e-05,2]
[347877463,1736178636367,-501.25007264,9.899e-05,2]
[347877464,1736178636377,-500.0,9.899e-05,2]
[347877465,1736178636386,-500.0,9.899e-05,2]
[347877466,1736178636395,-500.0,9.899e-05,2]
[347877467,1736178636405,-501.39446731,9.899e-05,2]